Cogmind - Beta 11.1 @@@ ROGUE MODE // 2022.09.01 @ 19:45:22 Player: Gobbopathe Result: Destroyed by S-43 Plague with Heavy Machine Gun Performance ------------- Evolutions (8) 4000 Regions Visited (19) 3800 Robots Destroyed (84) 420 Value Destroyed (2865) 2865 Prototype IDs (24) 480 Alien Tech Used (0) 0 Bonus (2217) 2217 TOTAL SCORE: 13782 Bonus ------- Triggered Max Security 1000 High Alert Combat Kills 368 Entered Garrisons 200 Used RIF Installer 500 Aligned with FarCom 300 Friendly Fire -151 Cogmind --------- Core Integrity 0/1450 Matter 284/300 Energy 99/100 System Corruption 9% Temperature Cool (0) Movement Core (50) Location -2/Research Parts ------- > --- POWER (1) -------- (None) > --- PROPULSION (4) --- (None) > --- UTILITY (16) ----- (None) > --- WEAPON (2) ------- (None) > --- INVENTORY (5) ---- (None) Peak State ------------ > --- POWER ------------ Micro Antimatter Reactor > --- PROPULSION ------- Biomechanical Wings Impulse Thruster Impulse Thruster Cooled Impulse Thruster > --- UTILITY ---------- Experimental Cooling System Lightpack 2.0 Experimental Optical Array Advanced Terrain Scan Processor Advanced Target Analyzer Armor Integrity Analyzer Advanced Transmission Jammer Advanced EM Disruption Field Hacking Suite Improved Hacking Suite Improved Hacking Suite Improved Hacking Suite Advanced Hacking Suite System Shield > --- WEAPON ----------- Neutron Missile Launcher Kinetic Spear > --- INVENTORY -------- Micro Antimatter Reactor Compact Particle Reactor Graviton Reactor Improved Gyrokinetic Inverter Improved Gyrokinetic Inverter Improved Linear Gravjet Antigrav Array Combat Linear Gravjet Nuclear Pulse Array Impulse Thruster Array Improved Heat Sink Advanced Heat Sink Coolant Network Improved Coolant Injector Advanced Coolant Injector Advanced Energy Well Advanced Gravity Neutralizer Advanced ECM Suite Layered Medium Armor Plating Experimental Thermal Shield Relay Coupler [NC] Relay Coupler [NC] Relay Coupler [Cutter] Relay Coupler [Grunt] Relay Coupler [Hunter] Improved Corruption Screen Enhanced Quantum Rifle Gamma Bomb Array Heavy Rocket Launcher Smartbomb Launcher Micro-nuke Launcher Portable AFG [Rating: 179] Favorites ----------- Power Light Nuclear Core Engine Ion Engine Power Core Light Nuclear Core Reactor Micro Antimatter Reactor Propulsion Hover Unit Leg Aluminum Leg Wheel Compact Wheel Hover Unit Hover Unit Flight Unit Xenon Bombardment Thruster Utility Hacking Suite Device Improved Terrain Scanner Storage Lightpack 2.0 Processor Advanced Terrain Scan Processor Hackware Hacking Suite Protection Improved Light Armor Plating Weapon Mace Energy Gun Small Laser Ballistic Gun Light Assault Rifle Launcher Long-range Missile Launcher Special Weapon Remote Datajack Impact Weapon Mace Piercing Weapon Kinetic Spear Special Melee Weapon Improved Datajack Build | -11 -10 -10 -10 -9 -8 -8 -8 -7 -6 -5 -5 -4 -4 -4 -4 -4 -3 -3 -2 ------- Run | Scr Mat Min Exi Min Mat Gar Mat Fac Fac Fac Ext Fac Was Fac Upp Upp Res Tes Res Slots Evolved 16 | . . . . . 4 . . 2 2 2 . 2 . . . . 2 . 2 Power . | . . . . . . . . . . . . . . . . . . . . Propulsion 2 | . . . . . 1 . . . 1 . . . . . . . . . . Utility 14 | . . . . . 3 . . 2 1 2 . 2 . . . . 2 . 2 Weapon . | . . . . . . . . . . . . . . . . . . . . Parts Attached 191 | 7 2 . 5 . 4 18 10 19 22 14 1 9 . 13 18 . 11 10 28 Power 12 | 1 . . . . . 2 . . 4 . . . . 2 2 . . . 1 Engine 6 | 1 . . . . . 1 . . 3 . . . . . 1 . . . . Core 5 | . . . . . . 1 . . 1 . . . . 2 1 . . . . Reactor 1 | . . . . . . . . . . . . . . . . . . . 1 Propulsion 67 | 2 . . . . 3 5 6 10 5 6 1 3 . 5 6 . 4 . 11 Treads . | . . . . . . . . . . . . . . . . . . . . Leg 2 | . . . . . . 2 . . . . . . . . . . . . . Wheel 6 | 2 . . . . . 3 1 . . . . . . . . . . . . Hover 41 | . . . . . 3 . 5 9 5 . . 3 . 5 5 . . . 6 Flight 18 | . . . . . . . . 1 . 6 1 . . . 1 . 4 . 5 Utility 59 | 2 2 . 2 . 1 3 2 4 4 5 . 4 . 3 3 . 4 9 11 Device 24 | 1 . . 2 . . 1 . . 2 3 . . . . 1 . 4 4 6 Storage 7 | 1 2 . . . 1 1 . . . . . . . . . . . 2 . Processor 7 | . . . . . . . . . 1 . . . . . 1 . . 3 2 Hackware 15 | . . . . . . . 1 3 1 2 . 4 . 2 . . . . 2 Protection 6 | . . . . . . 1 1 1 . . . . . 1 1 . . . 1 Artifact . | . . . . . . . . . . . . . . . . . . . . Weapon 53 | 2 . . 3 . . 8 2 5 9 3 . 2 . 3 7 . 3 1 5 Energy Gun 15 | 2 . . 2 . . 4 1 2 . . . 1 . . 2 . . . 1 Energy Cannon . | . . . . . . . . . . . . . . . . . . . . Ballistic Gun 6 | . . . 1 . . 1 . . 3 . . . . . 1 . . . . Ballistic Cannon . | . . . . . . . . . . . . . . . . . . . . Launcher 9 | . . . . . . . . . 2 . . . . . 3 . 1 . 3 Special Weapon 5 | . . . . . . . . 1 2 2 . . . . . . . . . Impact Weapon 9 | . . . . . . 3 . 2 2 . . 1 . 1 . . . . . Slashing Weapon . | . . . . . . . . . . . . . . . . . . . . Piercing Weapon 8 | . . . . . . . . . . 1 . . . 2 1 . 2 1 1 Special Melee Weapon 1 | . . . . . . . 1 . . . . . . . . . . . . Unidentified Prototypes 20 | . . . 2 . 1 . . 1 2 1 . . . 1 . . . 7 5 Parts Lost 65 | . . . . . . 6 1 5 3 . 4 1 . 1 14 . . . 30 Power 6 | . . . . . . 2 . . 1 . . . . . 2 . . . 1 Propulsion 25 | . . . . . . 3 . 3 1 . 2 . . . 6 . . . 10 Utility 24 | . . . . . . . . 1 . . 2 1 . 1 4 . . . 15 Weapon 10 | . . . . . . 1 1 1 1 . . . . . 2 . . . 4 Highest Loss Streak 16 | . . . . . . 3 1 4 3 . 4 1 . 1 10 . . . 16 To Critical Strikes . | . . . . . . . . . . . . . . . . . . . . Average Slot Usage (%) 81 | . 100 100 97 100 72 75 78 78 82 84 84 82 78 82 76 57 75 84 76 Engine 2 | . 14 14 14 14 9 4 . . 3 . . . . . 2 . . . . Core 3 | . . . . . . 3 9 7 2 5 5 5 5 5 2 5 4 4 . Wheel 3 | . 28 28 28 28 . 11 2 . . . . . . . . . . . . Hover 11 | . . . . . 27 6 23 21 22 8 . 14 15 14 14 10 1 . 1 Flight 4 | . . . . . . . . . . 10 21 . . . . . 17 19 13 Device 5 | . 14 14 13 14 9 9 3 . 5 4 5 5 5 3 3 . 5 6 7 Storage 7 | . 14 14 14 14 9 11 9 7 6 5 5 5 5 5 5 5 4 9 5 Processor 5 | . . . . . . . . . 6 5 5 5 5 5 8 10 9 12 15 Hackware 19 | . . . . . . . 5 20 20 29 27 35 31 35 26 26 23 23 21 Protection 1 | . . . . . . 3 9 6 . . . . . 1 2 . . . . Energy Gun 3 | . 28 28 19 14 9 6 2 4 1 . . 1 . . 3 . . . . Ballistic Gun 2 | . . . 6 14 9 9 3 . 2 2 . . . . 3 . . . . Impact Weapon 3 | . . . . . . 2 9 6 5 3 . 1 5 4 1 . . . . Piercing Weapon 1 | . . . . . . . . . . 2 5 5 5 5 1 . 7 7 4 Naked Turns 11 | . . . . . . . . . . . . . . . . . . . 11 Heaviest Build 30 | 14 29 29 29 28 13 17 17 20 29 23 23 23 21 23 30 11 23 23 27 Greatest Support 51 | 32 32 32 32 32 18 42 20 21 35 35 24 37 37 40 48 25 24 24 51 Greatest Overweight (x) 2 | . . . . . . 1 1 2 . 1 1 . . . 2 . . . . Average Overweight (x) . | . . . . . . . . . . . . . . . . . . . . Largest Inventory Capacity 40 | 8 15 15 15 15 40 40 40 40 40 40 40 40 40 40 40 40 40 40 40 Average Capacity 36 | 7 10 15 15 15 40 40 40 40 40 40 40 40 40 40 40 40 40 40 37 Most Carried 40 | 2 9 9 15 12 9 16 23 36 40 40 40 39 40 40 40 29 30 37 40 Average Carried 29 | 1 4 9 10 12 8 10 19 31 37 39 39 38 39 39 35 29 27 31 34 Final Capacity 40 | 8 15 15 15 15 40 40 40 40 40 40 40 40 40 40 40 40 40 40 5 Final Carried 40 | 2 9 9 12 12 8 16 23 34 40 40 39 39 40 40 29 29 29 37 . Class Distribution -------------------- 25% | Bothacker-Scout 11% | Hacker-Mutant 11% | Bothacker-Mutant 10% | Hauler-Mutant 8% | Mutant 8% | Wizard-Scout 8% | Hacker-Sprinter 7% | Wizard-Sprinter 3% | Hauler-Skirmisher Dominant Class ---------------- Mutant | -10/Materials Mutant | -10/Mines Mutant | -10/Exiles Skirmisher | -9/Mines Skirmisher | -8/Materials Hauler-Mutant | -8/Garrison Hauler-Mutant | -8/Materials Bothacker-Mutant | -7/Factory Bothacker-Scout | -6/Factory Bothacker-Scout | -5/Factory Bothacker-Scout | -5/Extension Wizard-Scout | -4/Factory Wizard-Scout | -4/Waste Wizard-Scout | -4/Factory Hacker-Mutant | -4/Upper Caves Hacker-Mutant | -4/Upper Caves Hacker-Sprinter | -3/Research Hacker-Sprinter | -3/Testing Wizard-Sprinter | -2/Research Resources | -11 -10 -10 -10 -9 -8 -8 -8 -7 -6 -5 -5 -4 -4 -4 -4 -4 -3 -3 -2 ----------- Run | Scr Mat Min Exi Min Mat Gar Mat Fac Fac Fac Ext Fac Was Fac Upp Upp Res Tes Res Matter Collected 2673 | 270 . . . . . 303 89 177 277 161 10 85 . 346 120 . 334 89 412 Remotely . | . . . . . . . . . . . . . . . . . . . . Salvage Created 2821 | 108 . . . . . 336 89 567 306 137 . 130 . 202 136 . 103 89 618 Parts 152 | 2 . . . . . 26 2 12 37 3 . 6 . 5 13 . 5 8 33 Haulers Intercepted 3 | . . . . . . . 1 . 1 . . . . 1 . . . . . Recyclers Shooed 2 | . . . . . . . . 1 1 . . . . . . . . . . Parts Field Recycled . | . . . . . . . . . . . . . . . . . . . . Retrieved Matter . | . . . . . . . . . . . . . . . . . . . . Parts Self-Destructed 11 | . . . . . . . . . . . . . . . 11 . . . . Prevented 5 | . . . . . . . . . . . . . . . 5 . . . . Kills | -11 -10 -10 -10 -9 -8 -8 -8 -7 -6 -5 -5 -4 -4 -4 -4 -4 -3 -3 -2 ------- Run | Scr Mat Min Exi Min Mat Gar Mat Fac Fac Fac Ext Fac Was Fac Upp Upp Res Tes Res Combat Hostiles Destroyed 50 | . . . . . . 11 1 4 10 1 . 1 . 1 12 . 1 . 8 Melee 13 | . . . . . . 2 . 2 . 1 . 1 . 1 . . 1 . 5 Guns 12 | . . . . . . 8 . 1 1 . . . . . 2 . . . . AOE 22 | . . . . . . . . . 9 . . . . . 10 . . . 3 Classes Destroyed 12 | 2 . . . . . 3 2 1 4 . . . . . . . . . . Worker 7 | . . . . . . . . . 4 1 . . . . . . . . 2 Builder 5 | . . . . . . . . . 5 . . . . . . . . . . Tunneler 2 | 1 . . . . . . . . 1 . . . . . . . . . . Hauler 3 | . . . . . . . 1 . 1 . . . . 1 . . . . . Recycler 6 | 1 . . . . . . . 4 . . . . . . . . . . 1 Operator 1 | . . . . . . . . . 1 . . . . . . . . . . Watcher 9 | . . . . . . . . 2 1 1 . 1 . . . . . 2 2 Swarmer 32 | . . . . . . 6 . . 9 . . . . . 13 . . . 4 Grunt 7 | . . . . . . 4 . 3 . . . . . . . . . . . Brawler 1 | . . . . . . 1 . . . . . . . . . . . . . Sentry 8 | . . . . . . . 1 1 . 1 . 1 . 1 . . 1 . 2 Programmer 3 | . . . . . . . . . 1 . . . . . . . . . 2 Best Kill Streak 15 | 1 . . . . . 4 1 6 15 1 . 1 . 1 4 . 1 1 7 Combat Bots Only 6 | . . . . . . 4 1 2 4 1 . 1 . 1 4 . 1 . 6 Max Kills in Single Turn 5 | 1 . . . . . 1 1 1 5 1 . 1 . 1 3 . 1 1 2 Gunslinging . | . . . . . . . . . . . . . . . . . . . . Exploded 4 | . . . . . . . . . 4 . . . . . 3 . . . 2 Melee 1 | . . . . . . 1 . 1 . 1 . 1 . 1 . . 1 . 1 Uniques/NPCs Destroyed . | . . . . . . . . . . . . . . . . . . . . Combat | -11 -10 -10 -10 -9 -8 -8 -8 -7 -6 -5 -5 -4 -4 -4 -4 -4 -3 -3 -2 -------- Run | Scr Mat Min Exi Min Mat Gar Mat Fac Fac Fac Ext Fac Was Fac Upp Upp Res Tes Res Damage Taken 7586 | . . . . . . 645 176 453 570 23 448 212 . 137 1400 . 53 147 3322 Core 2670 | . . . . . . 176 17 36 146 . 271 50 . 19 359 . 28 97 1471 Absorbed by Shields 44 | . . . . . . . . . 44 . . . . . . . . . . Redirected to Shielding 106 | . . . . . . . . . . . . . . . 106 . . . . Regen/Repaired (Parts) 387 | . . . . . . . 53 240 . 94 . . . . . . . . . Core Remaining (%) 83 | 100 . . . 100 . . 64 94 82 . 72 . . . . 62 . 90 . Volleys Fired 106 | 10 1 . . . . 35 1 15 7 3 . 4 . . 25 . . . 5 Largest 2 | 2 1 . . . . 2 1 2 2 1 . 1 . . 2 . . . 1 Hottest 105 | 80 40 . . . . 60 20 105 60 7 . 55 . . 85 . . . 65 Shots Fired 162 | 12 1 . . . . 70 1 21 8 3 . 4 . . 37 . . . 5 Gun 137 | 12 1 . . . . 70 1 20 2 . . 4 . . 25 . . . 2 Cannon . | . . . . . . . . . . . . . . . . . . . . Launcher 18 | . . . . . . . . . 3 . . . . . 12 . . . 3 Special 7 | . . . . . . . . 1 3 3 . . . . . . . . . Kinetic 48 | . . . . . . 35 1 . 2 . . . . . 10 . . . . Thermal 42 | 10 . . . . . 24 . 6 . . . . . . . . . . 2 Explosive 18 | . . . . . . . . . 3 . . . . . 12 . . . 3 Electromagnetic 47 | 2 1 . . . . 11 . 14 . . . 4 . . 15 . . . . Robot Hit Streak 11 | 3 . . . . . 7 . 3 3 3 . 7 . . 11 . . . 5 Robot Miss Streak 4 | 1 1 . . . . 3 1 2 2 . . . . . 4 . . . . Penetration Max . | . . . . . . . . . . . . . . . . . . . . Secondary Targets 3 | . . . . . . 3 . . . . . . . . . . . . . Max Gunslinging Chain 1 | . . . . . . 1 . . . . . . . . . . . . . Shots Hit Robots 181 | 8 . . . . . 46 10 31 6 8 . 10 . 11 20 . 2 3 26 Core Hits 107 | 3 . . . . . 21 . 7 21 3 . 5 . 3 20 . 2 2 20 Critical Kills 2 | . . . . . . 1 . . 1 . . . . . . . . . . Critical Parts Destroyed 5 | . . . . . . . 2 3 . . . . . . . . . . . Critical Strikes 11 | . . . . . . 1 2 3 1 . . . . 1 . . . . 3 Smash 7 | . . . . . . 1 2 3 1 . . . . . . . . . . Impale 4 | . . . . . . . . . . . . . . 1 . . . . 3 Melee Attacks 197 | . . . . . . 7 14 24 11 19 . 12 . 23 . . 8 12 67 Impact 67 | . . . . . . 7 11 24 11 10 . 1 . 3 . . . . . Slashing . | . . . . . . . . . . . . . . . . . . . . Piercing 127 | . . . . . . . . . . 9 . 11 . 20 . . 8 12 67 Sneak Attacks 14 | . . . . . . . 4 1 1 1 . . . 1 . . 1 1 4 Combat Hostiles 2 | . . . . . . . . . . . . . . . . . 1 . 1 Follow-up Attacks 2 | . . . . . . . . . . 1 . . . 1 . . . . . Damage Inflicted 9001 | 124 . . . . . 542 194 822 2554 227 . 350 . 494 1556 . 96 273 1769 Guns 1269 | 92 . . . . . 421 . 197 30 . . 136 . . 319 . . . 74 Cannons . | . . . . . . . . . . . . . . . . . . . . Explosions 4256 | 32 . . . . . . . . 2416 . . . . . 1237 . . . 571 Melee 3476 | . . . . . . 121 194 625 108 227 . 214 . 494 . . 96 273 1124 Ramming . | . . . . . . . . . . . . . . . . . . . . Kinetic 349 | . . . . . . 165 . . 30 . . . . . 154 . . . . Thermal 630 | 98 . . . . . 173 . 33 252 . . . . . . . . . 74 Explosive 3972 | . . . . . . . . . 2164 . . . . . 1237 . . . 571 Electromagnetic 574 | 26 . . . . . 83 . 164 . . . 136 . . 165 . . . . Impact 1178 | . . . . . . 121 194 625 108 90 . . . 40 . . . . . Slashing . | . . . . . . . . . . . . . . . . . . . . Piercing 2298 | . . . . . . . . . . 137 . 214 . 454 . . 96 273 1124 Highest Corruption 15 | . . . . . . 2 2 . . . . . 10 15 15 15 . . 9 Average Corruption 7 | . . . . . . 2 2 . . . . . 10 12 15 15 . . 2 Corruption Purged . | . . . . . . . . . . . . . . . . . . . . Corruption Blocked 5 | . . . . . . . . . 5 . . . . . . . . . . Effects 54 | . . . . . . 2 2 . . . . . 2 16 27 1 . . 4 Message Errors 18 | . . . . . . 1 1 . . . . . . 4 9 1 . . 2 Matter Fused 9 | . . . . . . 1 . . . . . . 1 5 2 . . . . Heat Flow Errors 5 | . . . . . . . . . . . . . . 2 3 . . . . Energy Discharges 1 | . . . . . . . . . . . . . . . . . . . 1 Parts Rejected 2 | . . . . . . . . . . . . . . . 1 . . . 1 Data Loss (minor) 8 | . . . . . . . 1 . . . . . 1 4 2 . . . . Data Loss (major) 3 | . . . . . . . . . . . . . . 1 2 . . . . Misfires 3 | . . . . . . . . . . . . . . . 3 . . . . Misdirections 2 | . . . . . . . . . . . . . . . 2 . . . . Weapon Failures 3 | . . . . . . . . . . . . . . . 3 . . . . Overload Shots . | . . . . . . . . . . . . . . . . . . . . Overflow Damage 945 | . . . . . . 3 74 196 228 20 . . . 33 210 . . 63 118 Projectiles . | . . . . . . . . . . . . . . . . . . . . Explosions 446 | . . . . . . . . . 228 . . . . . 210 . . . 8 Melee 499 | . . . . . . 3 74 196 . 20 . . . 33 . . . 63 110 Knockbacks 5 | . . . . . . . . 5 . . . . . . . . . . . Impact 4 | . . . . . . . . 4 . . . . . . . . . . . Kinetic . | . . . . . . . . . . . . . . . . . . . . Secondary 1 | . . . . . . . . 1 . . . . . . . . . . . Self-Inflicted Damage 207 | . . . . . . . . . . . . . . . 95 . . . 112 Shots 5 | . . . . . . . . . . . . . . . 2 . . . 3 Rammed . | . . . . . . . . . . . . . . . . . . . . Targets Rammed . | . . . . . . . . . . . . . . . . . . . . Kicked . | . . . . . . . . . . . . . . . . . . . . Crushed . | . . . . . . . . . . . . . . . . . . . . Highest Temperature 259 | 36 . . . . . 48 . 250 11 . . . . 148 259 . . 197 . Average Temperature 68 | 20 . . . . . 21 . 108 9 . . . . 89 82 . . 96 . Received Heat Transfer 1182 | . . . . . . 261 45 228 12 9 78 45 . 18 225 . . 27 234 Siege Activations . | . . . . . . . . . . . . . . . . . . . . Robots Corrupted . | . . . . . . . . . . . . . . . . . . . . Combat Hostiles . | . . . . . . . . . . . . . . . . . . . . Parts Fried 10 | . . . . . . . 3 2 . 2 . 3 . . . . . . . Impact Corruptions 16 | . . . . . . 1 3 11 . 1 . . . . . . . . . Robots Melted . | . . . . . . . . . . . . . . . . . . . . Combat Hostiles . | . . . . . . . . . . . . . . . . . . . . Parts Melted 1 | 1 . . . . . . . . . . . . . . . . . . . Heat Transferred 949 | 200 . . . . . 400 . 75 200 . . . . . . . . . 74 Parts Sabotaged . | . . . . . . . . . . . . . . . . . . . . Parts Stolen . | . . . . . . . . . . . . . . . . . . . . Parts Stripped . | . . . . . . . . . . . . . . . . . . . . Power Chain Reactions 1 | 1 . . . . . . . . . . . . . . . . . . . Missiles Intercepted . | . . . . . . . . . . . . . . . . . . . . Alert | -11 -10 -10 -10 -9 -8 -8 -8 -7 -6 -5 -5 -4 -4 -4 -4 -4 -3 -3 -2 ------- Run | Scr Mat Min Exi Min Mat Gar Mat Fac Fac Fac Ext Fac Was Fac Upp Upp Res Tes Res Peak Influence 1894 | 10 37 14 . . . 290 210 328 683 276 30 53 18 151 . . 142 1894 1371 Initial 1100 | . 6 14 . . . . 141 95 18 240 2 . 18 12 . . 6 79 1100 Average 359 | 3 27 14 . . . 181 172 183 261 94 5 12 18 68 . . 44 1661 1232 Maximum Alert Level 5 | . . . . . . 1 1 1 2 1 . . . . . . . 5 4 Low Security (%) 55 | 100 100 100 . 100 100 45 70 73 36 70 100 100 100 100 . . 100 . . Level 1 20 | . . . . . . 54 29 26 31 29 . . . . . . . . . Level 2 5 | . . . . . . . . . 32 . . . . . . . . . . Level 3 . | . . . . . . . . . . . . . . . . . . . 6 Level 4 13 | . . . . . . . . . . . . . . . . . . . 93 Level 5 . | . . . . . . . . . . . . . . . . . . . . High Security . | . . . . . . . . . . . . . . . . . . . . Max Security 3 | . . . . . . . . . . . . . . . . . . 99 . Squads Dispatched 37 | . . . . . . . . 4 10 3 . 1 . 4 . . . 6 9 Investigation 15 | . . . . . . . . 4 3 3 . 1 . 2 . . . . 2 Extermination 4 | . . . . . . . . . 1 . . . . . . . . . 3 Reinforcement 4 | . . . . . . . . . 1 . . . . 2 . . . . 1 Assault 11 | . . . . . . . . . 2 . . . . . . . . 6 3 Garrison 3 | . . . . . . . . . 3 . . . . . . . . . . Intercept . | . . . . . . . . . . . . . . . . . . . . Searches Triggered . | . . . . . . . . . . . . . . . . . . . . Construction Impeded . | . . . . . . . . . . . . . . . . . . . . Haulers Reinforced 1 | . . . . . . . . . . . . . . 1 . . . . . Active Scanning Responses . | . . . . . . . . . . . . . . . . . . . . Cargo Convoy Interrupts 1 | . . . . . . . . . 1 . . . . . . . . . . Stealth | -11 -10 -10 -10 -9 -8 -8 -8 -7 -6 -5 -5 -4 -4 -4 -4 -4 -3 -3 -2 --------- Run | Scr Mat Min Exi Min Mat Gar Mat Fac Fac Fac Ext Fac Was Fac Upp Upp Res Tes Res Distress Signals 4 | . . . . . . . 1 . . . . . . . . . 1 . 2 Communications Jammed . | . . . . . . . . . . . . . . . . . . . . Distress Signals . | . . . . . . . . . . . . . . . . . . . . Times Spotted 183 | . 1 . . . . 13 2 11 15 3 4 2 3 3 31 . 11 27 57 Peak Tracking Total 20 | . 1 . . . . 7 3 3 4 1 5 1 3 3 13 . 13 19 20 Tactical Retreats 22 | . . . . . . 3 . . 1 . . . . 1 5 . . 3 9 Traps | -11 -10 -10 -10 -9 -8 -8 -8 -7 -6 -5 -5 -4 -4 -4 -4 -4 -3 -3 -2 ------- Run | Scr Mat Min Exi Min Mat Gar Mat Fac Fac Fac Ext Fac Was Fac Upp Upp Res Tes Res Traps Triggered 10 | . . . . . . 2 . 1 1 . . 1 . 4 . . . . 1 Indirectly . | . . . . . . . . . . . . . . . . . . . . Trap Hack Attempts . | . . . . . . . . . . . . . . . . . . . . Triggered . | . . . . . . . . . . . . . . . . . . . . Disarmed . | . . . . . . . . . . . . . . . . . . . . Reprogrammed . | . . . . . . . . . . . . . . . . . . . . Reused . | . . . . . . . . . . . . . . . . . . . . Traps Extracted . | . . . . . . . . . . . . . . . . . . . . Installed . | . . . . . . . . . . . . . . . . . . . . Triggered 5 | . . . . . . . . . 2 . . . . . 3 . . . . Machines | -11 -10 -10 -10 -9 -8 -8 -8 -7 -6 -5 -5 -4 -4 -4 -4 -4 -3 -3 -2 ---------- Run | Scr Mat Min Exi Min Mat Gar Mat Fac Fac Fac Ext Fac Was Fac Upp Upp Res Tes Res Machines Disabled 24 | . . . . . . 1 . . 21 . . . . . . . . 2 . Max in Single Turn 6 | . . . . . . 1 . . 6 . . . . . . . . 1 . Garrison Access 3 | . . . . . . . . . 2 . . . . . . . . . 1 Garrison Relay 1 | . . . . . . 1 . . . . . . . . . . . . . Machines Sabotaged . | . . . . . . . . . . . . . . . . . . . . Garrisons Compromised 1 | . . . . . . . . . 1 . . . . . . . . . . Overloaded Fab Kills . | . . . . . . . . . . . . . . . . . . . . Hacking | -11 -10 -10 -10 -9 -8 -8 -8 -7 -6 -5 -5 -4 -4 -4 -4 -4 -3 -3 -2 --------- Run | Scr Mat Min Exi Min Mat Gar Mat Fac Fac Fac Ext Fac Was Fac Upp Upp Res Tes Res Machines Accessed 69 | . 3 . 4 . 1 . 6 10 14 6 1 2 . 4 . . 4 . 14 Terminals 39 | . 3 . . . . . 4 5 9 2 1 1 . 1 . . 3 . 10 Fabricators 11 | . . . . . . . . 1 2 3 . 1 . 2 . . . . 2 Repair Stations 3 | . . . . . . . 1 1 . 1 . . . . . . . . . Recycling Units 2 | . . . . . . . 1 . . . . . . . . . 1 . . Scanalyzers 4 | . . . . . . . . 1 1 . . . . 1 . . . . 1 Garrison Access 6 | . . . . . 1 . . 2 2 . . . . . . . . . 1 Total Hacks 233 | . 7 . 49 . 1 . 26 35 40 17 1 4 . 10 . . 9 . 34 Successful 172 | . 5 . 49 . 1 . 14 26 20 16 1 4 . 8 . . 7 . 21 Failed 60 | . 2 . . . . . 12 9 20 1 . . . 2 . . 2 . 12 Catastrophic 5 | . . . . . . . 1 1 1 . . . . . . . . . 2 Database Lockouts 1 | . . . . . . . . . . . . . . . . . . . 1 Manual 88 | . 4 . 1 . . . 18 15 24 2 . . . . . . 4 . 20 Terminals 115 | . 7 . . . . . 18 14 27 8 1 2 . 4 . . 6 . 28 Fabricators 26 | . . . . . . . . 5 5 7 . 2 . 4 . . . . 3 Repair Stations 15 | . . . . . . . 7 6 . 2 . . . . . . . . . Recycling Units 4 | . . . . . . . 1 . . . . . . . . . 3 . . Scanalyzers 12 | . . . . . . . . 5 3 . . . . 2 . . . . 2 Garrison Access 12 | . . . . . 1 . . 5 5 . . . . . . . . . 1 Terminal Hacks 89 | . 2 . 49 . . . 2 6 6 5 1 2 . 2 . . 2 . 12 Record 49 | . . . 49 . . . . . . . . . . . . . . . . Part Schematic 2 | . . . . . . . . . 2 . . . . . . . . . . Robot Analysis 8 | . . . . . . . . . 1 1 . . . . . . 2 . 4 Open Door 1 | . . . . . . . . . . . 1 . . . . . . . . Open DSF 1 | . . . . . . . . 1 . . . . . . . . . . . Machine Index 1 | . . . . . . . . . . . . . . 1 . . . . . Terminal Index 4 | . . . . . . . 1 1 1 . . . . . . . . . 1 Fabricator Index 2 | . . . . . . . . . . . . 1 . . . . . . 1 Garrison Index 2 | . . . . . . . . 1 1 . . . . . . . . . . Unreport Threat 7 | . . . . . . . . 1 1 2 . . . . . . . . 3 Locate Traps 3 | . 1 . . . . . . . . 1 . 1 . . . . . . . Recall Investigation 3 | . . . . . . . . 1 . . . . . 1 . . . . 1 Recall Assault 1 | . . . . . . . . . . . . . . . . . . . 1 Zone Layout 5 | . 1 . . . . . 1 1 . 1 . . . . . . . . 1 Fabricator Hacks 19 | . . . . . . . . 1 3 7 . 2 . 4 . . . . 2 Network Status 3 | . . . . . . . . 1 1 1 . . . . . . . . . Load Schematic 8 | . . . . . . . . . 1 3 . 1 . 2 . . . . 1 Build 8 | . . . . . . . . . 1 3 . 1 . 2 . . . . 1 Repair Station Hacks 12 | . . . . . . . 5 5 . 2 . . . . . . . . . Scan Component 7 | . . . . . . . 3 3 . 1 . . . . . . . . . Repair 5 | . . . . . . . 2 2 . 1 . . . . . . . . . Recycling Unit Hacks 4 | . . . . . . . 1 . . . . . . . . . 3 . . Process 1 | . . . . . . . . . . . . . . . . . 1 . . Report Inventory 2 | . . . . . . . 1 . . . . . . . . . 1 . . Retrieve Matter 1 | . . . . . . . . . . . . . . . . . 1 . . Scanalyzer 10 | . . . . . . . . 4 2 . . . . 2 . . . . 2 Insert Component 6 | . . . . . . . . 2 1 . . . . 1 . . . . 2 Analyze 4 | . . . . . . . . 2 1 . . . . 1 . . . . . Garrison Access Hacks 7 | . . . . . 1 . . 2 3 . . . . . . . . . 1 Unlock Access 1 | . . . . . 1 . . . . . . . . . . . . . . Seal Access 2 | . . . . . . . . . 1 . . . . . . . . . 1 Coupler Status 4 | . . . . . . . . 2 2 . . . . . . . . . . Unauthorized Hacks 31 | . 3 . . . . . 6 8 6 2 . . . . . . 2 . 4 Terminals 23 | . 3 . . . . . 6 4 2 2 . . . . . . 2 . 4 Track 3 | . 1 . . . . . 1 1 . . . . . . . . . . . Assimilate 6 | . . . . . . . 2 1 . . . . . . . . 2 . 1 Botnet 11 | . 2 . . . . . 2 2 2 1 . . . . . . . . 2 Operators 3 | . . . . . . . 1 . . 1 . . . . . . . . 1 Fabricators 3 | . . . . . . . . 1 2 . . . . . . . . . . Report 1 | . . . . . . . . . 1 . . . . . . . . . . Fabnet 2 | . . . . . . . . 1 1 . . . . . . . . . . Repair Stations . | . . . . . . . . . . . . . . . . . . . . Recycling Units . | . . . . . . . . . . . . . . . . . . . . Scanalyzers . | . . . . . . . . . . . . . . . . . . . . Garrison Access 5 | . . . . . . . . 3 2 . . . . . . . . . . Watchers 2 | . . . . . . . . 1 1 . . . . . . . . . . Eject 3 | . . . . . . . . 2 1 . . . . . . . . . . Data Cores Recovered . | . . . . . . . . . . . . . . . . . . . . Used . | . . . . . . . . . . . . . . . . . . . . Hacking Detections 59 | . 3 . . . . . 5 8 14 6 . 2 . 4 . . 4 . 13 Full Trace Events 11 | . . . . . . . . 1 2 3 . 1 . 2 . . . . 2 Feedback Events . | . . . . . . . . . . . . . . . . . . . . Feedback Blocked . | . . . . . . . . . . . . . . . . . . . . Robot Schematics Acquired . | . . . . . . . . . . . . . . . . . . . . Robots Built . | . . . . . . . . . . . . . . . . . . . . Authchips . | . . . . . . . . . . . . . . . . . . . . Time . | . . . . . . . . . . . . . . . . . . . . Total Robot Build Rating . | . . . . . . . . . . . . . . . . . . . . Part Schematics Acquired 5 | . . . . . . . . 2 3 . . . . . . . . . . Parts Built 7 | . . . . . . . . . 1 3 . . . 2 . . . . 1 Authchips . | . . . . . . . . . . . . . . . . . . . . Time 440 | . . . . . . . . . 47 189 . 31 . 78 . . . . 95 Total Part Build Rating 35 | . . . . . . . . . 5 15 . . . 10 . . . . 5 Parts Repaired 5 | . . . . . . . 2 2 . 1 . . . . . . . . . Time 122 | . . . . . . . 62 35 . 25 . . . . . . . . . Parts Recycled . | . . . . . . . . . . . . . . . . . . . . Recycled Matter 47 | . . . . . . . . . . . . . . . . . 47 . . Retrieved Matter 47 | . . . . . . . . . . . . . . . . . 47 . . Retrieved Components . | . . . . . . . . . . . . . . . . . . . . Parts Scanalyzed 4 | . . . . . . . . 2 1 . . . . 1 . . . . . Part Schematics Acquired 3 | . . . . . . . . 2 1 . . . . . . . . . . Parts Damaged . | . . . . . . . . . . . . . . . . . . . . Bothacking | -11 -10 -10 -10 -9 -8 -8 -8 -7 -6 -5 -5 -4 -4 -4 -4 -4 -3 -3 -2 ------------ Run | Scr Mat Min Exi Min Mat Gar Mat Fac Fac Fac Ext Fac Was Fac Upp Upp Res Tes Res Used RIF Installer 1 | . . . . . . 1 . . . . . . . . . . . . . Robots Hacked 7 | . . . . . . . 1 1 1 2 . . . . 2 . . . . Non-combat 5 | . . . . . . . 1 1 1 2 . . . . . . . . . Combat 2 | . . . . . . . . . . . . . . . 2 . . . . Robot Hacks Applied 5 | . . . . . . . 1 1 1 2 . . . . . . . . . parse_system 1 | . . . . . . . . 1 . . . . . . . . . . . generate_anomaly 1 | . . . . . . . . . . 1 . . . . . . . . . map_walls 1 | . . . . . . . . . . 1 . . . . . . . . . map_earth 1 | . . . . . . . 1 . . . . . . . . . . . . mark_security 1 | . . . . . . . . . 1 . . . . . . . . . . Relay Couplers Released 15 | . . . . . . 4 . 8 3 . . . . . . . . . . Ejected 11 | . . . . . . . . 8 3 . . . . . . . . . . Machine Destruction 4 | . . . . . . 4 . . . . . . . . . . . . . Attached 3 | . . . . . . . 1 1 1 . . . . . . . . . . Fabnet Peak Effective % 4 | . . . . . . . . . 3 4 4 1 1 1 1 1 . . . Autooverrided 2 | . . . . . . . . . . . . . . . 2 . . . . Robots Rewired 2 | . . . . . . . . . 2 . . . . . . . . . . Allies Hacked . | . . . . . . . . . . . . . . . . . . . . Hacks Repelled . | . . . . . . . . . . . . . . . . . . . . Allies | -11 -10 -10 -10 -9 -8 -8 -8 -7 -6 -5 -5 -4 -4 -4 -4 -4 -3 -3 -2 -------- Run | Scr Mat Min Exi Min Mat Gar Mat Fac Fac Fac Ext Fac Was Fac Upp Upp Res Tes Res Total Allies 12 | . . . . . . . 1 1 5 . . . 1 . 2 . 1 . 1 Largest Group 3 | . . . . . . . 1 1 3 . . . 1 . 1 . 1 . 1 Highest-Rated Group 100 | . . . . . . . 10 26 100 . . . 46 . 12 . 45 . 26 Highest-Rated Ally 46 | . . . . . . . 10 26 40 . . . 46 . 12 . 45 . 26 Total Orders 2 | . . . . . . . . 2 . . . . . . . . . . . STAY 1 | . . . . . . . . 1 . . . . . . . . . . . FOLLOW 1 | . . . . . . . . 1 . . . . . . . . . . . Ally Attacks 23 | . . . . . . . . . 13 . . . 8 . 2 . . . . Total Damage 1168 | . . . . . . . . . 847 . . . 278 . 43 . . . . Kills 2 | . . . . . . . . . 2 . . . . . . . . . . Allies Corrupted . | . . . . . . . . . . . . . . . . . . . . Allies Melted . | . . . . . . . . . . . . . . . . . . . . Intel | -11 -10 -10 -10 -9 -8 -8 -8 -7 -6 -5 -5 -4 -4 -4 -4 -4 -3 -3 -2 ------- Run | Scr Mat Min Exi Min Mat Gar Mat Fac Fac Fac Ext Fac Was Fac Upp Upp Res Tes Res Robot Analysis Total 8 | . . . . . . . . . 1 1 . . . . . . 2 . 4 Derelict Logs Recovered 3 | . . . . 1 . . . . . . . . . . 2 . . . . Drone Launches . | . . . . . . . . . . . . . . . . . . . . Drone Recoveries . | . . . . . . . . . . . . . . . . . . . . Exploration | -11 -10 -10 -10 -9 -8 -8 -8 -7 -6 -5 -5 -4 -4 -4 -4 -4 -3 -3 -2 ------------- Run | Scr Mat Min Exi Min Mat Gar Mat Fac Fac Fac Ext Fac Was Fac Upp Upp Res Tes Res Turns Passed 5758 | 69 155 9 267 83 9 569 249 692 891 546 33 163 35 413 454 36 180 186 719 Spaces Moved 8592 | 36 142 10 258 81 5 340 277 909 1410 1044 96 197 65 696 757 55 449 401 1364 Core 67 | 1 . . . . . . . . . . . . . . . . . . 66 Treads . | . . . . . . . . . . . . . . . . . . . . Legs 178 | . . . . . . 177 1 . . . . . . . . . . . . Wheels 688 | 35 142 10 258 81 . 102 60 . . . . . . . . . . . . Hover 4910 | . . . . . 5 61 216 909 1410 428 . 197 65 696 757 55 . . 111 Flight 2749 | . . . . . . . . . . 616 96 . . . . . 449 401 1187 Fastest Speed 28 | 50 100 100 100 100 52 52 52 52 48 29 29 52 52 38 45 66 29 29 28 Average Speed 49 | 98 100 100 100 100 52 103 61 57 50 38 34 52 52 41 47 66 29 29 32 Slowest Speed 190 | 100 100 100 100 100 52 190 120 180 56 116 109 52 52 52 180 66 37 29 66 Overloaded Moves . | . . . . . . . . . . . . . . . . . . . . Propulsion Burnouts . | . . . . . . . . . . . . . . . . . . . . Robots Hopped 28 | . . . . . . . . . . 9 . . . . . . 2 2 15 Cave-ins Triggered . | . . . . . . . . . . . . . . . . . . . . Exploration Rate (%) 30 | 4 25 4 61 23 2 33 21 23 40 22 24 6 75 15 86 16 14 69 46 Regions Visited 19 Branch Regions 7 Pre-discovered Areas 2 | . . . 1 . . . . . . . . . . . 1 . . . . Known Exits Taken 2 | . . . . . 1 . . . . . . . . . . . . 1 . Unknown Exits Taken 14 | 1 1 1 1 1 . . 1 1 1 1 1 . . 1 1 1 1 . . Scrap Searched 5 | . . . . . . . . . . . . . . . 5 . . . . Spaces Dug 77 | . . . . . . . 2 2 8 9 . 5 . 8 . . 5 5 33 Terrain Destroyed 300 | 3 . . . . . . 2 2 91 9 . 5 . 8 120 . 5 5 50 Melee 77 | . . . . . . . 2 2 8 9 . 5 . 8 . . 5 5 33 Projectile . | . . . . . . . . . . . . . . . . . . . . AOE 223 | 3 . . . . . . . . 83 . . . . . 120 . . . 17 Terrain Rammed . | . . . . . . . . . . . . . . . . . . . . Walls Destroyed . | . . . . . . . . . . . . . . . . . . . . Machines Disabled . | . . . . . . . . . . . . . . . . . . . . Actions | -11 -10 -10 -10 -9 -8 -8 -8 -7 -6 -5 -5 -4 -4 -4 -4 -4 -3 -3 -2 --------- Run | Scr Mat Min Exi Min Mat Gar Mat Fac Fac Fac Ext Fac Was Fac Upp Upp Res Tes Res Total 9614 | 54 153 9 268 83 10 476 333 1011 1571 1149 96 237 65 787 808 54 479 451 1520 Wait 310 | . . . . 3 . 35 19 18 64 54 . 6 . 45 7 . 5 13 41 Move 8524 | 35 141 9 257 80 5 339 276 908 1409 1026 95 197 64 695 756 54 444 396 1338 Hop 23 | . . . . . . . . . . 8 . . . . . . 2 2 11 Pick Up 145 | 2 7 . 1 . . 13 10 23 31 14 . 7 1 5 2 . 7 9 13 Fast Attach 59 | 7 . . 2 . . 5 1 6 3 4 . . . 8 . . 3 9 11 Attach 69 | . . . 3 . 2 5 5 5 7 4 1 7 . 1 11 . 5 1 12 Detach 30 | . . . 3 . . 3 3 2 1 2 . 3 . 1 . . . 5 7 Swap 63 | . 2 . . . 2 8 4 8 12 6 . 2 . 4 7 . 3 . 5 Drop 59 | . 2 . 2 . 1 . . 2 18 11 . . . 8 . . 3 5 7 Fire 106 | 10 1 . . . . 35 1 15 7 3 . 4 . . 25 . . . 5 Melee 189 | . . . . . . 7 14 24 11 17 . 11 . 20 . . 7 11 67 Ram . | . . . . . . . . . . . . . . . . . . . . Kick . | . . . . . . . . . . . . . . . . . . . . Crush . | . . . . . . . . . . . . . . . . . . . . Escape Stasis 29 | . . . . . . 26 . . . . . . . . . . . . 3 Rewire 8 | . . . . . . . . . 8 . . . . . . . . . . Trap . | . . . . . . . . . . . . . . . . . . . . Miscellaneous . | . . . . . . . . . . . . . . . . . . . . Route ------- -11/Scrapyard -10/Materials -10/Mines -10/Exiles (discovered 2 exits: [*Min x2]) -9/Mines -8/Materials -8/Garrison -8/Materials -7/Factory -6/Factory -5/Factory -5/Extension -4/Factory -4/Waste -4/Factory -4/Upper Caves -4/Upper Caves -3/Research (discovered 2 exits: [*Tes x2]) -3/Testing -2/Research History --------- Turn | Location | Event 17 | -11/Scrapyard | Discovered new exit (range 15) 70 | -11/Scrapyard | Entered Materials 150 | -10/Materials | Discovered new exit (range 13) 225 | -10/Materials | Entered Mines 230 | -10/Mines | Deemed a non-threat by the Exiles lab entrance 230 | -10/Mines | Discovered new exit (range 5) 234 | -10/Mines | Entered Exiles 247 | -10/Exiles | Discovered new exit (range 15) 258 | -10/Exiles | Met 8R-AWN 276 | -10/Exiles | Met EX-HEX 303 | -10/Exiles | Met EX-BIN 309 | -10/Exiles | Build established: Mutant 314 | -10/Exiles | Aligned with FarCom system 315 | -10/Exiles | Given EX-Vault access code 354 | -10/Exiles | Opened EX-Vault 360 | -10/Exiles | Found Prototype Energy Gun 360 | -10/Exiles | Identified AWS/Thermal 364 | -10/Exiles | Found Prototype Device 364 | -10/Exiles | Identified PSU Rigger 370 | -10/Exiles | Found Prototype Storage 395 | -10/Exiles | Warned to stay clear of 0b10 Research branches 405 | -10/Exiles | Exiles lab attacked by MAIN.C 455 | -10/Exiles | Learned location of Zion (-7) 493 | -10/Exiles | Discovered new exit (range 10) 501 | -10/Exiles | Left Exiles lab with Lightpack 2.0 501 | -10/Exiles | Entered Mines 548 | -9/Mines | Learned Materials emergency access door positions 569 | -9/Mines | Discovered new exit (range 9) 584 | -9/Mines | Entered Materials 584 | -8/Materials | Evolved 4 slots: Propulsion x1, Utility x3 584 | -8/Materials | Identified Lightpack 2.0 593 | -8/Materials | Identified exit to Garrison 593 | -8/Materials | Entered Garrison 824 | -8/Garrison | Triggered checkpoint 924 | -8/Garrison | Lost 3 parts (1p2n) 958 | -8/Garrison | Discovered new exit (range 10) 975 | -8/Garrison | Installed Relay Interface Framework 1066 | -8/Garrison | Garrison Relay disabled 1162 | -8/Garrison | Build established: Hauler-Mutant 1162 | -8/Garrison | Entered Materials 1205 | -8/Materials | Repaired Hover Unit 1246 | -8/Materials | Repaired Broken Hover Unit 1389 | -8/Materials | Discovered new exit (range 16) 1411 | -8/Materials | Entered Factory 1411 | -7/Factory | Accompanied by 1 ally 1411 | -7/Factory | Evolved 2 slots: Utility x2 1416 | -7/Factory | Identified exit to DSF 1709 | -7/Factory | Lost 4 parts (2n1u1w) 1774 | -7/Factory | Build established: Bothacker-Mutant 1823 | -7/Factory | Repaired Imp. Light Armor Plating? 1848 | -7/Factory | Repaired Mace 2090 | -7/Factory | Discovered new exit (range 8) 2103 | -7/Factory | Entered another Factory area 2103 | -6/Factory | Accompanied by 1 ally 2103 | -6/Factory | Evolved 2 slots: Propulsion x1, Utility x1 2421 | -6/Factory | Build established: Bothacker-Scout 2758 | -6/Factory | Spotted B-75 Beast 2803 | -6/Factory | First assault squad dispatched 2850 | -6/Factory | Cargo convoy interrupted 2876 | -6/Factory | Discovered new exit (range 15) 2892 | -6/Factory | Fabricated Imp. Hacking Suite (x1) 2913 | -6/Factory | Lost 3 parts (1p1n1w) 2994 | -6/Factory | Entered another Factory area 2994 | -5/Factory | Evolved 2 slots: Utility x2 3227 | -5/Factory | Fabricated Imp. Hacking Suite (x1) 3300 | -5/Factory | Repaired Gravmag Array 3316 | -5/Factory | Discovered new exit (range 4) 3425 | -5/Factory | Fabricated Imp. Hacking Suite? 3449 | -5/Factory | Fabricated Imp. Hacking Suite? 3540 | -5/Factory | Entered Extension 3563 | -5/Extension | Spotted B-75 Beast 3564 | -5/Extension | Spotted B-75 Beast 3570 | -5/Extension | Discovered new exit (range 3) 3573 | -5/Extension | Entered Factory 3573 | -4/Factory | Evolved 2 slots: Utility x2 3601 | -4/Factory | Lost 4 parts (2n2u) 3736 | -4/Factory | Sucked down chute 3736 | -4/Factory | Entered Waste 3737 | -4/Waste | Met a frightened Derelict 3743 | -4/Waste | Spotted C-40 Crusher 3747 | -4/Waste | Spotted C-40 Crusher 3749 | -4/Waste | Spotted C-40 Crusher 3751 | -4/Waste | EMP discharged 3751 | -4/Waste | System corruption reached 10% 3763 | -4/Waste | Discovered new exit (range 15) 3763 | -4/Waste | Spotted C-40 Crusher 3764 | -4/Waste | Spotted C-40 Crusher 3771 | -4/Waste | Entered Factory 3882 | -4/Factory | Build established: Wizard-Scout 3888 | -4/Factory | Fabricated Imp. Hacking Suite (x1) 3979 | -4/Factory | Fabricated Imp. Hacking Suite? 4100 | -4/Factory | Discovered new exit (range 9) 4184 | -4/Factory | Entered Upper Caves 4449 | -4/Upper Caves | Ambushed by wild Derelicts 4451 | -4/Upper Caves | Build established: Hacker-Mutant 4456 | -4/Upper Caves | Learned location of Quarantine (-2) 4474 | -4/Upper Caves | Learned Research garrison access intel 4600 | -4/Upper Caves | Attracted the attention of an 0b10 outpost 4633 | -4/Upper Caves | Discovered new exit (range 9) 4638 | -4/Upper Caves | Entered another Upper Caves area 4653 | -4/Upper Caves | Lost 10 parts (6n2u2w) 4666 | -4/Upper Caves | Discovered new exit (range 15) 4674 | -4/Upper Caves | Entered Research 4674 | -3/Research | Evolved 2 slots: Utility x2 4675 | -3/Research | Loaded intel: 4 garrison access locations 4689 | -3/Research | Discovered new exit (range 11) 4795 | -3/Research | Discovered new exit (range 17) 4854 | -3/Research | Entered Testing 4855 | -3/Testing | Maximum security lockdown engaged 4876 | -3/Testing | Found Prototype Device 4876 | -3/Testing | Identified Exp. Thermal Shield 4898 | -3/Testing | Spotted PH-HNNHJ4DX3Q 4935 | -3/Testing | Found Prototype Device 4935 | -3/Testing | Identified Adv. EM Disruption Field 4939 | -3/Testing | Found Gamma Bomb Array 4958 | -3/Testing | Found Prototype Device 4958 | -3/Testing | Identified Exp. Thermal Defense Suite 4961 | -3/Testing | Found Prototype Device 4961 | -3/Testing | Identified Exp. ECM Suite 4991 | -3/Testing | Found Portable AFG 5003 | -3/Testing | Build established: Hacker-Sprinter 5039 | -3/Testing | Discovered new exit (range 3) 5039 | -3/Testing | Identified exit to Research 5040 | -3/Testing | Entered Research 5040 | -2/Research | Evolved 2 slots: Utility x2 5113 | -2/Research | Found Gamma Bomb Array 5126 | -2/Research | Lost 7 parts (2n3u2w) 5321 | -2/Research | First assault squad dispatched 5574 | -2/Research | Spotted B-90 Cyclops 5575 | -2/Research | Central database locked down 5638 | -2/Research | Fabricated Imp. Hacking Suite? 5666 | -2/Research | Spotted B-90 Cyclops 5686 | -2/Research | Lost 5 parts (2n3u) 5724 | -2/Research | Core integrity fell below 50% 5752 | -2/Research | Core integrity fell below 20% 5759 | -2/Research | Destroyed by S-43 Plague with Heavy Machine Gun Last Messages --------------- reinforcements to area. 05729_ Imp. Hacking Suite destroyed. 05736_ W-44 Eye destroyed. 05737_ System corrupted: Energy discharge (-28). 05738_ Kinetic Spear destroyed. 05738_ Hacking Suite destroyed. 05738_ Adv. Terrain Scan Processor destroyed. 05738_ Critical hit (Blast). 05738_ Knocked back. 05740_ Imp. Hacking Suite destroyed. 05740_ Knocked back. 05742_ Imp. Gyrokinetic Inverter destroyed. 05743_ K-01 Serf cleans the Potential Refractor. 05743_ Slug penetrates Earth. 05745_ Smartbomb Launcher destroyed. 05748_ The unstable cave ceiling collapses. 05748_ Exp. Optical Array severed. 05748_ Adv. Target Analyzer severed. 05751_ P-80 Master resets C-57 Dissector, system corruption cleaned. 05758_ OR